[Event "23rd Alekhine FIDE 2019"]
[Site "Voronezh"]
[Date "2019.06.12"]
[Round "1.8"]
[White "Kolomensky, Vladimir"]
[Black "Dobrynin, Ivan"]
[Result "1-0"]
[ECO "B43"]
[WhiteElo "2134"]
[BlackElo "1734"]
[Annotator "NA"]
[PlyCount "39"]
[EventDate "2019.06.11"]
[EventType "swiss"]
[EventCountry "RUS"]
[SourceTitle "playchess.com"]
[Source "ChessBase"]
[SourceQuality "1"]
[TimeControl "40/5400+30:1800+30"]

1. e4 {[%emt 0:00:00]} c5 {[%emt 0:00:00]} 2. Nf3 {[%emt 0:00:00]} e6 {[%emt 0:00:00]} 3. d4 {[%emt 0:00:01]} cxd4 {[%emt 0:00:00]} 4. Nxd4 {[%emt 0:00:05]} a6 5. Nc3 Qc7 {[%emt 0:00:42]} 6. g3 {[%emt 0:00:49]} b5 {[%emt 0:00:39]} 7. Bg2 {[%emt 0:00:11]} Bb7 {[%emt 0:00:08]} 8. O-O {[%emt 0:00:07]} d6 {[%emt 0:00:17]} 9. Re1 {[%emt 0:01:45]} Be7 {[%emt 0:02:23]} 10. a4 {[%emt 0:13:32]} bxa4 {[%emt 0:04:10]} 11. Rxa4 {[%emt 0:23:57]} Nf6 {[%emt 0:04:45]} 12. Rb4 {[%emt 0:07:41]} Nfd7 {[%emt 0:11:51]} 13. Nf5 {[%emt 0:27:40]} Kf8 {[%emt 0:12:16]} 14. Nxd6 {[%emt 0:11:38]} Qxd6 {[%emt 0:05:07]} 15. Rxb7 {[%emt 0:00:43]} Qxd1 {[%emt 0:00:36]} 16. Rxd1 {[%emt 0:00:04]} Nc5 {[%emt 0:00:16]} 17. Rc7 {[%emt 0:00:16]} Nbd7 {[%emt 0:01:35]} 18. b4 {[%emt 0:00:24]} Bd8 {[%emt 0:00:16]} 19. Rc6 {[%emt 0:00:15]} Bf6 {[%emt 0:01:47]} 20. bxc5 1-0

[Event "23rd Alekhine FIDE 2019"]
[Site "Voronezh"]
[Date "2019.06.12"]
[Round "1.9"]
[White "Astakhov, Alexander"]
[Black "Shaydullina, Sandugach"]
[Result "0-1"]
[ECO "B90"]
[WhiteElo "1733"]
[BlackElo "2128"]
[Annotator "NA"]
[PlyCount "64"]
[EventDate "2019.06.11"]
[EventType "swiss"]
[EventCountry "RUS"]
[SourceTitle "playchess.com"]
[Source "ChessBase"]
[SourceQuality "1"]
[TimeControl "40/5400+30:1800+30"]

1. e4 {[%emt 0:00:00]} c5 {[%emt 0:00:00]} 2. Nf3 {[%emt 0:00:00]} d6 {[%emt 0:00:00]} 3. d4 {[%emt 0:00:09]} cxd4 {[%emt 0:00:00]} 4. Nxd4 {[%emt 0:00:03]} Nf6 {[%emt 0:00:00]} 5. Nc3 {[%emt 0:00:07]} a6 {[%emt 0:00:02]} 6. f3 {[%emt 0:00:53]} e5 {[%emt 0:03:21]} 7. Nb3 {[%emt 0:00:16]} Be6 {[%emt 0:00:05]} 8. Bg5 {[%emt 0:02:13]} Be7 {[%emt 0:00:07]} 9. Qd2 {[%emt 0:01:01]} Nbd7 {[%emt 0:00:38]} 10. O-O-O {[%emt 0:01:30]} O-O {[%emt 0:00:05]} 11. f4 {[%emt 0:05:32]} b5 {[%emt 0:01:52]} 12. Bxf6 {[%emt 0:03:42]} Nxf6 {[%emt 0:00:20]} 13. fxe5 {[%emt 0:01:43]} dxe5 {[%emt 0:00:03]} 14. Qxd8 {[%emt 0:00:44]} Rfxd8 {[%emt 0:00:05]} 15. Rxd8+ {[%emt 0:01:05]} Rxd8 {[%emt 0:00:07]} 16. Bd3 {[%emt 0:02:20]} Ng4 {[%emt 0:00:52]} 17. Kd2 {[%emt 0:10:00]} Nf2 {[%emt 0:18:15]} 18. Rf1 {[%emt 0:11:30]} Bg5+ {[%emt 0:00:53]} 19. Ke2 {[%emt 0:05:23]} Nxd3 {[%emt 0:00:07]} 20. cxd3 {[%emt 0:00:06]} Bg4+ {[%emt 0:00:06]} 21. Rf3 {[%emt 0:03:50]} Bxf3+ {[%emt 0:00:06]} 22. gxf3 {[%emt 0:00:02]} Rc8 {[%emt 0:00:13]} 23. Kd1 {[%emt 0:01:31]} Rc6 {[%emt 0:00:34]} 24. Nd5 {[%emt 0:02:09]} Rh6 {[%emt 0:00:16]} 25. Kc2 {[%emt 0:01:35]} Rxh2+ {[%emt 0:00:41]} 26. Kc3 {[%emt 0:00:02]} h5 {[%emt 0:00:07]} 27. Nc7 {[%emt 0:01:02]} h4 {[%emt 0:00:10]} 28. Nxa6 {[%emt 0:00:06]} h3 {[%emt 0:00:18]} 29. Nc7 {[%emt 0:00:11]} b4+ {[%emt 0:00:26]} 30. Kxb4 {[%emt 0:00:14]} Rxb2 {[%emt 0:00:09]} 31. a4 {[%emt 0:00:25]} h2 {[%emt 0:00:09]} 32. Kc3 {[%emt 0:00:35]} Ra2 {[%emt 0:00:04] Kd4} 0-1

[Event "23rd Alekhine FIDE 2019"]
[Site "Voronezh"]
[Date "2019.06.12"]
[Round "1.10"]
[White "Beldyugin, Alexey"]
[Black "Tatarintsev, Mikhail"]
[Result "1-0"]
[ECO "A01"]
[WhiteElo "2126"]
[BlackElo "1730"]
[Annotator "NA"]
[PlyCount "79"]
[EventDate "2019.06.11"]
[EventType "swiss"]
[EventCountry "RUS"]
[SourceTitle "playchess.com"]
[Source "ChessBase"]
[SourceQuality "1"]
[TimeControl "40/5400+30:1800+30"]

1. b3 {[%emt 0:00:00]} d5 {[%emt 0:00:00]} 2. Bb2 {[%emt 0:00:00]} e6 {[%emt 0:00:38]} 3. Nf3 {[%emt 0:00:00]} Nf6 {[%emt 0:00:36]} 4. e3 {[%emt 0:00:00]} c5 {[%emt 0:01:15]} 5. c4 {[%emt 0:00:02]} Nc6 {[%emt 0:01:16]} 6. cxd5 {[%emt 0:00:11]} Nxd5 {[%emt 0:03:26]} 7. Bb5 {[%emt 0:00:19]} Bd7 {[%emt 0:02:57]} 8. O-O {[%emt 0:00:21]} Nf6 {[%emt 0:03:46]} 9. Nc3 {[%emt 0:07:26]} Be7 {[%emt 0:05:48]} 10. d4 {[%emt 0:01:34]} cxd4 {[%emt 0:02:33]} 11. Nxd4 {[%emt 0:00:17]} Nxd4 {[%emt 0:07:50]} 12. Qxd4 {[%emt 0:00:10]} O-O {[%emt 0:03:16]} 13. Bxd7 {[%emt 0:02:39]} Qxd7 {[%emt 0:05:49]} 14. Qxd7 {[%emt 0:00:15]} Nxd7 {[%emt 0:00:06]} 15. Rfd1 {[%emt 0:00:19]} Rfd8 {[%emt 0:05:38]} 16. Nb5 {[%emt 0:00:47]} Bf6 {[%emt 0:16:27]} 17. Bd4 {[%emt 0:01:03]} b6 {[%emt 0:04:35]} 18. Rac1 {[%emt 0:05:34]} Bxd4 {[%emt 0:03:13]} 19. Rxd4 {[%emt 0:02:21]} Nc5 {[%emt 0:04:13]} 20. Rxd8+ {[%emt 0:08:44]} Rxd8 {[%emt 0:00:46]} 21. b4 {[%emt 0:01:13]} Nd3 {[%emt 0:02:33]} 22. Rd1 {[%emt 0:00:55]} Rd5 {[%emt 0:01:43]} 23. Nc3 {[%emt 0:00:13]} Rd7 {[%emt 0:01:09]} 24. f4 {[%emt 0:01:44]} Kf8 {[%emt 0:01:01]} 25. a3 {[%emt 0:12:01]} Ke8 {[%emt 0:01:15]} 26. Rb1 {[%emt 0:00:24]} e5 {[%emt 0:04:16]} 27. f5 {[%emt 0:00:24]} g6 {[%emt 0:03:43]} 28. g4 {[%emt 0:00:33]} a6 {[%emt 0:01:35]} 29. Ne4 {[%emt 0:03:10]} Ke7 {[%emt 0:01:26]} 30. Kf1 {[%emt 0:01:33]} h6 {[%emt 0:03:02]} 31. Ke2 {[%emt 0:01:24]} Rd8 {[%emt 0:01:27]} 32. h4 {[%emt 0:03:19]} Rd7 {[%emt 0:01:10]} 33. h5 {[%emt 0:00:12]} g5 {[%emt 0:03:16]} 34. Rd1 Nb2 35. f6+ {[%emt 0:11:20]} Ke6 {[%emt 0:01:07]} 36. Nxg5+ {[%emt 0:00:38]} Kxf6 {[%emt 0:00:32]} 37. Rxd7 {[%emt 0:00:18]} Kxg5 {[%emt 0:00:05]} 38. Rxf7 {[%emt 0:01:53]} Kxg4 {[%emt 0:00:08]} 39. Rf6 {[%emt 0:00:16]} Kxh5 {[%emt 0:00:17]} 40. Rxb6 {[%emt 0:00:11]} 1-0

[Event "23rd Alekhine FIDE 2019"]
[Site "Voronezh"]
[Date "2019.06.12"]
[Round "1.11"]
[White "Volodin, Konstantin"]
[Black "Skvortsov, Andrei"]
[Result "0-1"]
[ECO "A28"]
[WhiteElo "1726"]
[BlackElo "2123"]
[Annotator "NA"]
[PlyCount "96"]
[EventDate "2019.06.11"]
[EventType "swiss"]
[EventCountry "RUS"]
[SourceTitle "playchess.com"]
[Source "ChessBase"]
[SourceQuality "1"]
[TimeControl "40/5400+30:1800+30"]

1. c4 {[%emt 0:00:00]} Nf6 {[%emt 0:00:31]} 2. Nc3 {[%emt 0:00:00]} e5 {[%emt 0:00:11]} 3. Nf3 {[%emt 0:00:00]} Nc6 {[%emt 0:00:28]} 4. e4 {[%emt 0:00:03]} d6 {[%emt 0:00:33]} 5. d4 {[%emt 0:00:32]} exd4 {[%emt 0:00:10]} 6. Nxd4 {[%emt 0:00:06]} Be7 {[%emt 0:01:16]} 7. Be2 {[%emt 0:00:34]} O-O {[%emt 0:00:16]} 8. Be3 {[%emt 0:00:14]} Re8 {[%emt 0:00:11]} 9. O-O {[%emt 0:02:03]} Bf8 {[%emt 0:02:56]} 10. f3 {[%emt 0:00:14]} Ne5 {[%emt 0:06:24]} 11. Qd2 {[%emt 0:03:36]} c6 {[%emt 0:00:15]} 12. a3 {[%emt 0:01:06]} Qc7 {[%emt 0:00:18]} 13. b4 {[%emt 0:01:18]} Be6 {[%emt 0:01:54]} 14. Nxe6 {[%emt 0:01:53]} fxe6 {[%emt 0:00:17]} 15. Rfd1 {[%emt 0:04:46]} Rad8 {[%emt 0:03:22]} 16. Rac1 {[%emt 0:00:53]} b6 {[%emt 0:07:48]} 17. Qe1 {[%emt 0:02:26]} Qf7 {[%emt 0:04:41]} 18. h3 {[%emt 0:04:26]} Nh5 {[%emt 0:01:01]} 19. Qf2 {[%emt 0:01:56]} Nf4 {[%emt 0:00:38]} 20. Bf1 {[%emt 0:00:04]} c5 {[%emt 0:09:13]} 21. g3 {[%emt 0:02:40]} Nh5 {[%emt 0:00:36]} 22. f4 {[%emt 0:01:07]} Nc6 {[%emt 0:00:01]} 23. g4 {[%emt 0:08:38]} cxb4 {[%emt 0:01:23]} 24. axb4 {[%emt 0:02:09]} Nf6 {[%emt 0:00:03]} 25. Rb1 {[%emt 0:05:43]} Kh8 {[%emt 0:12:45]} 26. Bg2 {[%emt 0:05:44]} d5 {[%emt 0:09:53]} 27. e5 {[%emt 0:03:41]} Ne4 {[%emt 0:00:43]} 28. Nxe4 {[%emt 0:05:20]} dxe4 {[%emt 0:00:07]} 29. c5 {[%emt 0:04:44]} Rxd1+ {[%emt 0:00:33]} 30. Rxd1 {[%emt 0:00:04]} Nxb4 {[%emt 0:00:55]} 31. cxb6 {[%emt 0:04:47]} axb6 {[%emt 0:00:38]} 32. Bxe4 {[%emt 0:07:09]} b5 {[%emt 0:00:30]} 33. Qh4 {[%emt 0:02:14]} g6 {[%emt 0:00:02]} 34. Qf2 {[%emt 0:01:04]} Rc8 {[%emt 0:00:58]} 35. Qb2 {[%emt 0:00:23]} Rc4 {[%emt 0:00:46]} 36. Bb1 {[%emt 0:00:56]} Qb7 {[%emt 0:11:49]} 37. Rd8 {[%emt 0:03:56]} Kg8 {[%emt 0:04:09]} 38. f5 {[%emt 0:03:20]} Qe7 {[%emt 0:08:33]} 39. Qd2 {[%emt 0:03:12]} Nc6 {[%emt 0:00:40]} 40. Bg5 {[%emt 0:02:31]} Qc5+ {[%emt 0:00:13]} 41. Be3 {[%emt 0:33:18]} Qxe5 {[%emt 0:31:24]} 42. Rxf8+ {[%emt 0:03:59]} Kxf8 {[%emt 0:00:46]} 43. Bh6+ {[%emt 0:01:08]} Kg8 {[%emt 0:05:23]} 44. fxg6 {[%emt 0:01:51]} Qg3+ {[%emt 0:00:59]} 45. Qg2 {[%emt 0:02:09]} Qxg2+ {[%emt 0:00:03]} 46. Kxg2 {[%emt 0:00:03]} hxg6 {[%emt 0:00:13]} 47. Bxg6 {[%emt 0:00:07]} Ne5 {[%emt 0:00:28]} 48. Bb1 {[%emt 0:01:01]} Rb4 0-1

[Event "23rd Alekhine FIDE 2019"]
[Site "Voronezh"]
[Date "2019.06.12"]
[Round "1.12"]
[White "Al-Hajiri, Bader"]
[Black "Bratov, Ademir"]
[Result "0-1"]
[ECO "C50"]
[WhiteElo "2121"]
[BlackElo "1725"]
[Annotator "NA"]
[PlyCount "78"]
[EventDate "2019.06.11"]
[EventType "swiss"]
[EventCountry "RUS"]
[SourceTitle "playchess.com"]
[Source "ChessBase"]
[SourceQuality "1"]
[TimeControl "40/5400+30:1800+30"]

1. e4 {[%emt 0:00:16]} e5 {[%emt 0:00:00]} 2. Nf3 {[%emt 0:00:12]} Nc6 {[%emt 0:00:00]} 3. Bc4 {[%emt 0:00:18]} Bc5 {[%emt 0:00:00]} 4. O-O {[%emt 0:00:28]} Nf6 {[%emt 0:00:29]} 5. d3 {[%emt 0:00:17]} d6 {[%emt 0:00:48]} 6. c3 {[%emt 0:00:50]} a6 {[%emt 0:00:45]} 7. b4 {[%emt 0:03:16]} Ba7 {[%emt 0:00:15]} 8. a4 {[%emt 0:00:06]} Ne7 {[%emt 0:02:36]} 9. Qb3 {[%emt 0:02:57]} O-O {[%emt 0:00:15]} 10. Bg5 {[%emt 0:01:46]} Ng6 {[%emt 0:03:28]} 11. Nbd2 {[%emt 0:00:15]} h6 {[%emt 0:00:38]} 12. Nh4 {[%emt 0:00:20]} hxg5 {[%emt 0:19:21]} 13. Nxg6 {[%emt 0:00:29]} d5 {[%emt 0:01:07]} 14. Nxf8 {[%emt 0:05:39]} dxc4 {[%emt 0:00:57]} 15. Nxc4 {[%emt 0:00:09]} Qxf8 {[%emt 0:01:25]} 16. Nxe5 {[%emt 0:00:15]} Be6 {[%emt 0:00:09]} 17. Qc2 {[%emt 0:00:31]} Qd6 {[%emt 0:01:55]} 18. Nf3 {[%emt 0:01:38]} g4 {[%emt 0:06:17]} 19. e5 {[%emt 0:03:47]} Qd5 {[%emt 0:08:25]} 20. c4 {[%emt 0:02:47]} Qd7 {[%emt 0:00:17]} 21. Ng5 {[%emt 0:00:29]} Nh5 {[%emt 0:02:15]} 22. Nxe6 {[%emt 0:03:23]} Qxe6 {[%emt 0:00:06]} 23. Qe2 {[%emt 0:06:17]} Bd4 {[%emt 0:02:00]} 24. Rac1 {[%emt 0:01:31]} Bxe5 {[%emt 0:13:59]} 25. Rfe1 {[%emt 0:00:49]} Re8 {[%emt 0:00:10]} 26. g3 {[%emt 0:00:30]} Nf6 {[%emt 0:01:12]} 27. Qd2 {[%emt 0:03:06]} Qd7 {[%emt 0:03:33]} 28. d4 {[%emt 0:06:03]} Qxd4 {[%emt 0:03:29]} 29. Qg5 {[%emt 0:03:23]} Ne4 {[%emt 0:04:53]} 30. Qf5 {[%emt 0:00:21]} Bd6 {[%emt 0:00:58]} 31. Red1 {[%emt 0:08:11]} Qb2 {[%emt 0:02:13]} 32. Rf1 {[%emt 0:06:49]} Qxb4 {[%emt 0:03:58]} 33. Qxg4 {[%emt 0:02:59]} Qxa4 {[%emt 0:01:54]} 34. Rfe1 {[%emt 0:00:11]} Nf6 {[%emt 0:00:21]} 35. Rxe8+ {[%emt 0:00:11]} Qxe8 {[%emt 0:00:06]} 36. Qf3 {[%emt 0:00:16]} b6 {[%emt 0:00:08]} 37. Kf1 {[%emt 0:00:36]} Ne4 {[%emt 0:00:21]} 38. Qe2 {[%emt 0:00:43]} Qc6 {[%emt 0:00:45]} 39. Qg4 {[%emt 0:01:30]} Nxg3+ {[%emt 0:01:08]} 0-1

[Event "23rd Alekhine FIDE 2019"]
[Site "Voronezh"]
[Date "2019.06.12"]
[Round "1.13"]
[White "Koshelev, Vladimir"]
[Black "Manukovsky, Vladimir"]
[Result "1-0"]
[ECO "A04"]
[WhiteElo "2145"]
[BlackElo "2107"]
[Annotator "NA"]
[PlyCount "109"]
[EventDate "2019.06.11"]
[EventType "swiss"]
[EventCountry "RUS"]
[SourceTitle "playchess.com"]
[Source "ChessBase"]
[SourceQuality "1"]
[TimeControl "40/5400+30:1800+30"]

1. Nf3 {[%emt 0:00:52]} c5 {[%emt 0:00:00]} 2. c3 {[%emt 0:02:38]} b6 {[%emt 0:03:50]} 3. d4 {[%emt 0:02:36]} Bb7 {[%emt 0:01:44]} 4. e3 {[%emt 0:01:44]} Nf6 {[%emt 0:00:24]} 5. Be2 {[%emt 0:01:55]} g6 {[%emt 0:01:14]} 6. a4 {[%emt 0:03:12]} Bg7 {[%emt 0:03:03]} 7. Na3 {[%emt 0:00:28]} O-O {[%emt 0:00:07]} 8. O-O {[%emt 0:00:46]} d6 {[%emt 0:00:19]} 9. Qb3 {[%emt 0:04:21]} Nbd7 {[%emt 0:04:30]} 10. Rd1 {[%emt 0:01:16]} cxd4 {[%emt 0:09:53]} 11. exd4 {[%emt 0:01:52]} Rc8 {[%emt 0:07:57]} 12. Bf4 {[%emt 0:04:45]} Qc7 {[%emt 0:01:21]} 13. h3 {[%emt 0:06:50]} Bd5 {[%emt 0:04:58]} 14. c4 {[%emt 0:01:26]} Ba8 {[%emt 0:03:37]} 15. Rac1 {[%emt 0:01:50]} Qb7 {[%emt 0:01:34]} 16. Qe3 {[%emt 0:04:44]} Rfe8 {[%emt 0:01:01]} 17. Bh6 {[%emt 0:07:45]} Bh8 {[%emt 0:01:05]} 18. Bf1 {[%emt 0:04:00]} Nh5 {[%emt 0:01:00]} 19. Nb5 {[%emt 0:03:56]} Ng7 {[%emt 0:00:18]} 20. Bd3 {[%emt 0:01:14]} a6 {[%emt 0:02:39]} 21. Nc3 {[%emt 0:00:31]} Nf6 {[%emt 0:00:04]} 22. d5 {[%emt 0:05:23]} e5 {[%emt 0:03:31]} 23. Ng5 {[%emt 0:01:50]} Re7 {[%emt 0:02:41]} 24. Nce4 {[%emt 0:04:03]} Nfe8 {[%emt 0:01:00]} 25. g4 {[%emt 0:04:13]} f5 {[%emt 0:02:00]} 26. Nc3 {[%emt 0:05:05]} e4 {[%emt 0:02:26]} 27. Be2 {[%emt 0:00:26]} Nf6 {[%emt 0:00:36]} 28. Bxg7 {[%emt 0:02:18]} Bxg7 {[%emt 0:00:22]} 29. Ne6 {[%emt 0:00:16]} Ne8 {[%emt 0:03:22]} 30. gxf5 {[%emt 0:03:27]} gxf5 {[%emt 0:00:41]} 31. Qg5 {[%emt 0:00:50]} Rf7 {[%emt 0:00:34]} 32. Kh1 {[%emt 0:02:23]} Qe7 {[%emt 0:00:26]} 33. Rg1 {[%emt 0:01:19]} Qxg5 {[%emt 0:01:37]} 34. Rxg5 {[%emt 0:00:53]} h6 {[%emt 0:01:11]} 35. Rg6 {[%emt 0:00:56]} Kh7 {[%emt 0:00:14]} 36. Rcg1 {[%emt 0:00:21]} Bxc3 {[%emt 0:04:03]} 37. bxc3 {[%emt 0:00:33]} Nf6 {[%emt 0:02:12]} 38. Nf4 {[%emt 0:01:25]} Rg8 {[%emt 0:01:34]} 39. Rxg8 {[%emt 0:01:23]} Nxg8 {[%emt 0:00:12]} 40. Bh5 {[%emt 0:00:26]} Rc7 {[%emt 0:05:12]} 41. Bg6+ {[%emt 0:32:02]} Kh8 {[%emt 0:30:19]} 42. Bxf5 {[%emt 0:00:09]} Rxc4 {[%emt 0:00:03]} 43. Ng6+ {[%emt 0:00:51]} Kg7 {[%emt 0:00:35]} 44. Ne5+ {[%emt 0:00:03]} Kf6 {[%emt 0:00:58]} 45. Nxc4 {[%emt 0:00:13]} Kxf5 {[%emt 0:00:12]} 46. Rxg8 {[%emt 0:00:17]} Bxd5 {[%emt 0:00:24]} 47. Ne3+ {[%emt 0:00:32]} Ke5 {[%emt 0:00:09]} 48. Re8+ {[%emt 0:01:13]} Be6 {[%emt 0:00:05]} 49. Ng4+ {[%emt 0:00:27]} Kf5 {[%emt 0:01:14]} 50. Nxh6+ {[%emt 0:00:19]} Kf6 {[%emt 0:00:10]} 51. Ng4+ {[%emt 0:00:08]} Kf7 {[%emt 0:00:55]} 52. Rb8 {[%emt 0:00:14]} Bd5 {[%emt 0:01:44]} 53. Ne3 {[%emt 0:00:31]} Bb3 {[%emt 0:00:09]} 54. Rxb6 {[%emt 0:00:28]} Bxa4 {[%emt 0:00:04]} 55. Rxa6 {[%emt 0:00:15]} 1-0

[Event "23rd Alekhine FIDE 2019"]
[Site "Voronezh"]
[Date "2019.06.12"]
[Round "1.14"]
[White "Gorshkov, Yury S."]
[Black "Shcherbinin, Nikolay"]
[Result "1-0"]
[ECO "A05"]
[WhiteElo "2103"]
[BlackElo "1717"]
[Annotator "NA"]
[PlyCount "43"]
[EventDate "2019.06.11"]
[EventType "swiss"]
[EventCountry "RUS"]
[SourceTitle "playchess.com"]
[Source "ChessBase"]
[SourceQuality "1"]
[TimeControl "40/5400+30:1800+30"]

1. Nf3 {[%emt 0:00:00]} Nf6 {[%emt 0:00:00]} 2. c4 {[%emt 0:00:00]} c5 {[%emt 0:00:00]} 3. Nc3 {[%emt 0:00:27]} g6 {[%emt 0:00:07]} 4. d4 {[%emt 0:00:44]} cxd4 {[%emt 0:00:09]} 5. Nxd4 {[%emt 0:00:09]} Bg7 {[%emt 0:00:15]} 6. e4 {[%emt 0:00:15]} d6 {[%emt 0:00:19]} 7. f3 {[%emt 0:00:34]} O-O {[%emt 0:00:32]} 8. Be3 {[%emt 0:00:11]} Nc6 {[%emt 0:00:39]} 9. Qd2 {[%emt 0:00:45]} Bd7 {[%emt 0:00:39]} 10. Be2 {[%emt 0:00:27]} a6 {[%emt 0:02:13]} 11. O-O {[%emt 0:00:25]} Rb8 {[%emt 0:01:26]} 12. Rac1 {[%emt 0:07:58]} Nxd4 {[%emt 0:11:07]} 13. Bxd4 {[%emt 0:00:17]} b5 {[%emt 0:00:23]} 14. cxb5 {[%emt 0:06:16]} axb5 {[%emt 0:01:15]} 15. b4 {[%emt 0:00:20]} Bc6 {[%emt 0:05:22]} 16. Rfd1 {[%emt 0:12:36]} Qd7 {[%emt 0:05:44]} 17. a4 {[%emt 0:02:51]} bxa4 {[%emt 0:02:10]} 18. b5 {[%emt 0:00:15]} Bb7 {[%emt 0:01:09]} 19. Nxa4 {[%emt 0:00:32]} Rfd8 {[%emt 0:11:32]} 20. Ba7 {[%emt 0:04:43]} Bxe4 {[%emt 0:06:41]} 21. Bxb8 {[%emt 0:00:21]} Rxb8 {[%emt 0:00:07]} 22. fxe4 1-0

[Event "23rd Alekhine FIDE 2019"]
[Site "Voronezh"]
[Date "2019.06.13"]
[Round "2.8"]
[White "Novikov, Kirill"]
[Black "Gorshkov, Yury S."]
[Result "1-0"]
[ECO "B06"]
[WhiteElo "1890"]
[BlackElo "2103"]
[Annotator "NA"]
[PlyCount "105"]
[EventDate "2019.06.12"]
[EventType "swiss"]
[EventCountry "RUS"]
[SourceTitle "playchess.com"]
[Source "ChessBase"]
[SourceQuality "1"]
[TimeControl "40/5400+30:1800+30"]

1. e4 {[%emt 0:00:00]} g6 {[%emt 0:00:01]} 2. d4 {[%emt 0:00:26]} Bg7 {[%emt 0:00:11]} 3. f4 {[%emt 0:02:13]} d6 {[%emt 0:00:15]} 4. Nf3 {[%emt 0:00:54]} a6 {[%emt 0:00:30]} 5. Nc3 {[%emt 0:01:02]} b5 {[%emt 0:00:26]} 6. a3 {[%emt 0:02:37]} Bb7 {[%emt 0:02:31]} 7. Be3 {[%emt 0:03:32]} Nd7 {[%emt 0:04:57]} 8. Qd2 {[%emt 0:04:34]} e6 {[%emt 0:10:26]} 9. O-O-O {[%emt 0:10:01]} Ngf6 {[%emt 0:14:44]} 10. Bd3 {[%emt 0:04:51]} Nb6 {[%emt 0:11:31]} 11. f5 {[%emt 0:10:53]} gxf5 {[%emt 0:09:24]} 12. exf5 {[%emt 0:00:41]} Qe7 {[%emt 0:01:14]} 13. Bg5 {[%emt 0:03:03]} O-O-O {[%emt 0:02:42]} 14. Rde1 {[%emt 0:00:37]} Kb8 {[%emt 0:02:36]} 15. Re2 {[%emt 0:06:10]} Rde8 {[%emt 0:03:34]} 16. Rhe1 {[%emt 0:03:38]} Qd7 {[%emt 0:04:18]} 17. Bh6 {[%emt 0:01:52]} Bxh6 {[%emt 0:16:04]} 18. Qxh6 {[%emt 0:00:08]} Ng4 {[%emt 0:00:52]} 19. Qh4 {[%emt 0:03:00]} h5 {[%emt 0:01:25]} 20. h3 {[%emt 0:00:45]} Nh6 {[%emt 0:00:29]} 21. fxe6 {[%emt 0:01:20]} fxe6 {[%emt 0:00:11]} 22. Bg6 {[%emt 0:07:46]} Ref8 {[%emt 0:04:24]} 23. Rxe6 {[%emt 0:01:07]} Nf5 {[%emt 0:00:42]} 24. Bxf5 {[%emt 0:07:38]} Rxf5 {[%emt 0:00:03]} 25. Re7 {[%emt 0:00:24]} Qc8 {[%emt 0:01:33]} 26. Ng5 {[%emt 0:02:18]} Bxg2 {[%emt 0:00:44]} 27. Ne6 {[%emt 0:00:40]} Na8 {[%emt 0:00:21]} 28. Ne4 {[%emt 0:05:01]} Qg8 {[%emt 0:02:31]} 29. Ng7 {[%emt 0:08:00]} Rf7 {[%emt 0:01:58]} 30. Re8+ {[%emt 0:01:42]} Qxe8 {[%emt 0:00:02]} 31. Nxe8 {[%emt 0:00:08]} Rxe8 {[%emt 0:00:04]} 32. Nd2 {[%emt 0:00:31]} Rxe1+ {[%emt 0:00:14]} 33. Qxe1 {[%emt 0:00:07]} Kb7 {[%emt 0:00:41]} 34. Qg3 {[%emt 0:01:29]} Bd5 {[%emt 0:01:13]} 35. b3 {[%emt 0:00:59]} Nb6 {[%emt 0:00:07]} 36. Qg6 {[%emt 0:01:00]} h4 {[%emt 0:01:10]} 37. Qg4 {[%emt 0:00:24]} Rh7 {[%emt 0:01:12]} 38. Ne4 {[%emt 0:00:44]} Re7 {[%emt 0:00:07]} 39. Ng5 {[%emt 0:00:41]} Re1+ {[%emt 0:00:21]} 40. Kb2 {[%emt 0:00:47]} a5 {[%emt 0:00:10]} 41. Qxh4 {[%emt 0:30:27]} Rh1 {[%emt 0:30:03]} 42. Qf2 {[%emt 0:01:28]} a4 {[%emt 0:00:13]} 43. h4 {[%emt 0:00:26]} Ka6 {[%emt 0:01:21]} 44. Nf3 {[%emt 0:03:42]} axb3 {[%emt 0:01:27]} 45. cxb3 {[%emt 0:00:29]} Rh3 {[%emt 0:00:02]} 46. Nd2 {[%emt 0:00:23]} Kb7 {[%emt 0:00:36]} 47. Kc2 {[%emt 0:00:23]} Kc6 {[%emt 0:00:25]} 48. Qf4 {[%emt 0:00:53]} Kb7 {[%emt 0:01:24]} 49. Qg5 {[%emt 0:00:46]} Rh2 {[%emt 0:00:09]} 50. Qf4 {[%emt 0:00:33]} Rh3 {[%emt 0:01:21]} 51. Qg4 {[%emt 0:00:10]} Rh2 {[%emt 0:00:46]} 52. Qf4 {[%emt 0:01:15]} Rh3 {[%emt 0:00:08]} 53. Qg4 1-0

[Event "23rd Alekhine FIDE 2019"]
[Site "Voronezh"]
[Date "2019.06.13"]
[Round "2.9"]
[White "Zakirov, Vladislav"]
[Black "Polovnikov, Artem"]
[Result "1-0"]
[ECO "C50"]
[WhiteElo "2099"]
[BlackElo "1882"]
[Annotator "NA RC"]
[PlyCount "73"]
[EventDate "2019.06.12"]
[EventType "swiss"]
[EventCountry "RUS"]
[SourceTitle "playchess.com"]
[Source "ChessBase"]
[SourceQuality "1"]
[TimeControl "40/5400+30:1800+30"]

1. e4 {[%emt 0:00:00]} e5 {[%emt 0:00:00]} 2. Nf3 {[%emt 0:01:52]} Nc6 {[%emt 0:00:00]} 3. Bc4 {[%emt 0:00:26]} Be7 {[%emt 0:00:24]} 4. O-O {[%emt 0:01:01]} d6 {[%emt 0:00:29]} 5. c3 {[%emt 0:04:52]} Nf6 {[%emt 0:01:43]} 6. Re1 {[%emt 0:00:16]} O-O {[%emt 0:00:29]} 7. d3 {[%emt 0:05:27]} Na5 {[%emt 0:03:54]} 8. Bb5 {[%emt 0:00:47]} a6 {[%emt 0:00:12]} 9. Ba4 {[%emt 0:00:06]} b5 {[%emt 0:00:05]} 10. Bc2 {[%emt 0:00:05]} Bb7 {[%emt 0:00:07]} 11. Nbd2 {[%emt 0:05:47]} c5 {[%emt 0:01:13]} 12. Nf1 {[%emt 0:00:34]} Nc6 {[%emt 0:00:18]} 13. Ng3 {[%emt 0:00:59]} g6 {[%emt 0:00:24]} 14. h3 {[%emt 0:04:53]} a5 {[%emt 0:19:26]} 15. d4 {[%emt 0:10:44]} a4 {[%emt 0:06:42]} 16. d5 {[%emt 0:09:15]} Na5 {[%emt 0:00:19]} 17. Nh2 {[%emt 0:03:49]} Bc8 {[%emt 0:01:20]} 18. f4 {[%emt 0:07:28]} Nc4 {[%emt 0:02:33]} 19. Rb1 {[%emt 0:03:53]} Bd7 {[%emt 0:02:06]} 20. b3 {[%emt 0:03:48]} axb3 {[%emt 0:00:40]} 21. axb3 {[%emt 0:00:32]} exf4 {[%emt 0:06:23]} 22. Bxf4 {[%emt 0:05:16]} Na3 {[%emt 0:06:14]} 23. Rb2 {[%emt 0:01:46]} Nxc2 {[%emt 0:00:48]} 24. Rxc2 {[%emt 0:00:06]} Re8 {[%emt 0:03:18]} 25. Rf2 {[%emt 0:01:34]} Rf8 {[%emt 0:08:37]} 26. Bh6 {[%emt 0:01:12]} Re8 {[%emt 0:00:19]} 27. Ref1 {[%emt 0:02:29]} Kh8 {[%emt 0:01:04]} 28. Bg5 {[%emt 0:03:01]} Nxd5 {[%emt 0:03:14]} 29. Bxe7 {[%emt 0:01:20]} Nxe7 {[%emt 0:00:30]} 30. Qxd6 {[%emt 0:01:56]} Be6 {[%emt 0:02:10]} 31. Qxc5 {[%emt 0:02:59]} Qd3 {[%emt 0:00:58]} 32. Rf3 {[%emt 0:01:03]} Qc2 {[%emt 0:00:56]} 33. Qd4+ {[%emt 0:02:11]} Kg8 {[%emt 0:00:34]} 34. Ng4 {[%emt 0:01:35]} Red8 {[%emt 0:02:02]} 35. Nh6+ {[%emt 0:00:32]} Kf8 {[%emt 0:00:20]} 36. Qh8+ {[%emt 0:00:17]} Ng8 {[%emt 0:00:07]} 37. Rxf7+ 1-0